[Event "Early-Titled-Tuesday-Blitz-February-13-2024"]
[Site "Chess.com"]
[Date "2024.02.13"]
[Round "7"]
[White "NM_Antelacus"]
[Black "Aash20"]
[Result "0-1"]
[WhiteElo "2248"]
[BlackElo "2459"]
[TimeControl "180+1"]
[EndTime "9:19:59 PST"]
[Termination "Aash20 won by resignation"]

1. e4 {[%clk 0:03:00.9]} 1... c5 {[%clk 0:02:58.4]} 2. Nf3 {[%clk 0:03:00.9]}
2... d6 {[%clk 0:02:58.5]} 3. c3 {[%clk 0:03:00.3]} 3... Nf6 {[%clk 0:02:54.8]}
4. Be2 {[%clk 0:03:00.3]} 4... g6 {[%clk 0:02:53.8]} 5. O-O {[%clk 0:03:00]}
5... Bg7 {[%clk 0:02:53.7]} 6. Re1 {[%clk 0:03:00]} 6... O-O {[%clk 0:02:53.9]}
7. Bf1 {[%clk 0:03:00.4]} 7... Nc6 {[%clk 0:02:53.5]} 8. d4 {[%clk 0:02:55.7]}
8... cxd4 {[%clk 0:02:52.8]} 9. cxd4 {[%clk 0:02:55.8]} 9... Bg4 {[%clk
0:02:53.3]} 10. d5 {[%clk 0:02:45.4]} 10... Ne5 {[%clk 0:02:45.4]} 11. Be2
{[%clk 0:02:43.9]} 11... Nxf3+ {[%clk 0:02:35.9]} 12. Bxf3 {[%clk 0:02:43.4]}
12... Bxf3 {[%clk 0:02:36.4]} 13. Qxf3 {[%clk 0:02:43.3]} 13... Qb6 {[%clk
0:02:34.7]} 14. Nc3 {[%clk 0:02:42.1]} 14... Rac8 {[%clk 0:02:33.1]} 15. Qe2
{[%clk 0:02:41.6]} 15... Nd7 {[%clk 0:02:20.9]} 16. Be3 {[%clk 0:02:39.8]} 16...
Qa5 {[%clk 0:02:18.1]} 17. Rac1 {[%clk 0:02:33.8]} 17... a6 {[%clk 0:02:09.6]}
18. Qd2 {[%clk 0:02:28.4]} 18... Rc4 {[%clk 0:01:29.7]} 19. f3 {[%clk
0:02:15.3]} 19... Rfc8 {[%clk 0:01:27.9]} 20. Ne2 {[%clk 0:02:08.4]} 20... Qxd2
{[%clk 0:01:25.3]} 21. Bxd2 {[%clk 0:02:07.9]} 21... Bxb2 {[%clk 0:01:24.6]} 22.
Rb1 {[%clk 0:01:51.9]} 22... Rc2 {[%clk 0:01:22.7]} 23. Be3 {[%clk 0:01:48]}
23... b5 {[%clk 0:01:21.2]} 24. Kf1 {[%clk 0:01:45.1]} 24... Ne5 {[%clk
0:01:17.4]} 25. Nd4 {[%clk 0:01:41.9]} 25... Bxd4 {[%clk 0:01:16]} 26. Bxd4
{[%clk 0:01:41.3]} 26... Rxa2 {[%clk 0:01:13.8]} 27. Ra1 {[%clk 0:01:36.8]}
27... Rcc2 {[%clk 0:01:10.3]} 28. Rxa2 {[%clk 0:01:35.8]} 28... Rxa2 {[%clk
0:01:09.5]} 29. Rc1 {[%clk 0:01:33.7]} 29... Nc4 {[%clk 0:01:08.7]} 30. f4
{[%clk 0:01:22]} 30... f6 {[%clk 0:01:05]} 31. Kg1 {[%clk 0:01:02.9]} 31... Kf7
{[%clk 0:00:56.3]} 32. Re1 {[%clk 0:01:00.4]} 32... a5 {[%clk 0:00:53.3]} 33. h3
{[%clk 0:00:57.5]} 33... a4 {[%clk 0:00:52.6]} 34. Rb1 {[%clk 0:00:57]} 34...
Rd2 {[%clk 0:00:50.3]} 35. Bf2 {[%clk 0:00:48.8]} 35... Rb2 {[%clk 0:00:46.5]}
36. Ra1 {[%clk 0:00:47.9]} 36... a3 {[%clk 0:00:45.3]} 37. Bd4 {[%clk
0:00:47.5]} 37... Rd2 {[%clk 0:00:44.9]} 38. Bc3 {[%clk 0:00:47.4]} 38... Rc2
{[%clk 0:00:44.6]} 39. Bb4 {[%clk 0:00:47.6]} 39... a2 {[%clk 0:00:44.3]} 40. g4
{[%clk 0:00:38.4]} 40... Nd2 {[%clk 0:00:42.3]} 41. Bxd2 {[%clk 0:00:35.8]}
41... Rxd2 {[%clk 0:00:41.9]} 0-1

[Event "Early-Titled-Tuesday-Blitz-February-13-2024"]
[Site "Chess.com"]
[Date "2024.02.13"]
[Round "7"]
[White "MIss_MIaMI"]
[Black "BelaKis"]
[Result "1-0"]
[WhiteElo "2428"]
[BlackElo "2205"]
[TimeControl "180+1"]
[EndTime "9:20:01 PST"]
[Termination "MIss_MIaMI won on time"]

1. e4 {[%clk 0:03:00.9]} 1... g6 {[%clk 0:02:59.6]} 2. Nf3 {[%clk 0:03:01.3]}
2... Bg7 {[%clk 0:03:00.2]} 3. d4 {[%clk 0:03:02]} 3... c5 {[%clk 0:03:00.5]} 4.
c3 {[%clk 0:03:00.4]} 4... cxd4 {[%clk 0:03:00.3]} 5. cxd4 {[%clk 0:03:01.3]}
5... d6 {[%clk 0:03:00.9]} 6. Nc3 {[%clk 0:03:01.1]} 6... Nf6 {[%clk 0:03:01.5]}
7. h3 {[%clk 0:03:01.3]} 7... O-O {[%clk 0:03:01.7]} 8. Bd3 {[%clk 0:03:01.8]}
8... Nc6 {[%clk 0:03:02.3]} 9. O-O {[%clk 0:03:02.1]} 9... Bd7 {[%clk
0:03:02.8]} 10. a3 {[%clk 0:03:01.7]} 10... Rc8 {[%clk 0:03:02.7]} 11. Be3
{[%clk 0:03:00.1]} 11... Na5 {[%clk 0:03:03.1]} 12. e5 {[%clk 0:02:54.3]} 12...
Ne8 {[%clk 0:03:02.8]} 13. Qe2 {[%clk 0:02:41.8]} 13... a6 {[%clk 0:02:58.3]}
14. Rac1 {[%clk 0:02:37.9]} 14... b5 {[%clk 0:02:55.8]} 15. Bg5 {[%clk
0:02:15.1]} 15... f6 {[%clk 0:02:36.7]} 16. e6 {[%clk 0:01:57.8]} 16... Bc6
{[%clk 0:01:40.5]} 17. Bh4 {[%clk 0:01:41.3]} 17... Nc7 {[%clk 0:01:26.6]} 18.
b4 {[%clk 0:01:30.5]} 18... Nc4 {[%clk 0:01:23.3]} 19. Bxc4 {[%clk 0:01:23.4]}
19... bxc4 {[%clk 0:01:24.2]} 20. Qxc4 {[%clk 0:01:15.7]} 20... Bxf3 {[%clk
0:01:19.5]} 21. gxf3 {[%clk 0:01:16.6]} 21... Nb5 {[%clk 0:01:18.3]} 22. Qd3
{[%clk 0:01:12.7]} 22... Nxa3 {[%clk 0:00:24.3]} 23. Qxa6 {[%clk 0:01:09.6]}
23... Ra8 {[%clk 0:00:24.2]} 24. Qd3 {[%clk 0:01:09.1]} 24... Qb6 {[%clk
0:00:19.5]} 25. Nd5 {[%clk 0:01:01.9]} 25... Qb7 {[%clk 0:00:19.6]} 26. Qe4
{[%clk 0:00:57.7]} 26... Rfb8 {[%clk 0:00:17.8]} 27. Rc7 {[%clk 0:00:54.2]}
27... Qb5 {[%clk 0:00:07.9]} 28. Nxe7+ {[%clk 0:00:41.4]} 28... Kh8 {[%clk
0:00:08.1]} 29. Nxg6+ {[%clk 0:00:33.1]} 29... hxg6 {[%clk 0:00:07.5]} 30. Qxg6
{[%clk 0:00:34]} 1-0

[Event "Early-Titled-Tuesday-Blitz-February-13-2024"]
[Site "Chess.com"]
[Date "2024.02.13"]
[Round "7"]
[White "FARIZA2018"]
[Black "Witty_Alien"]
[Result "1-0"]
[WhiteElo "2526"]
[BlackElo "2310"]
[TimeControl "180+1"]
[EndTime "9:20:03 PST"]
[Termination "FARIZA2018 won on time"]

1. e4 {[%clk 0:03:00.9]} 1... c5 {[%clk 0:02:50]} 2. Nf3 {[%clk 0:03:00.4]} 2...
d6 {[%clk 0:02:50]} 3. d4 {[%clk 0:03:00.6]} 3... cxd4 {[%clk 0:02:48.6]} 4.
Nxd4 {[%clk 0:03:01]} 4... Nf6 {[%clk 0:02:49.2]} 5. Nc3 {[%clk 0:03:01.1]} 5...
a6 {[%clk 0:02:49.7]} 6. Be2 {[%clk 0:02:49.9]} 6... e5 {[%clk 0:02:49.7]} 7.
Nb3 {[%clk 0:02:49.8]} 7... Be7 {[%clk 0:02:50]} 8. O-O {[%clk 0:02:50]} 8...
O-O {[%clk 0:02:50.1]} 9. Kh1 {[%clk 0:02:50.2]} 9... Re8 {[%clk 0:02:38.5]} 10.
f4 {[%clk 0:02:48.7]} 10... Nc6 {[%clk 0:02:33.7]} 11. a4 {[%clk 0:02:42.3]}
11... Bf8 {[%clk 0:01:48.2]} 12. f5 {[%clk 0:02:33.3]} 12... h6 {[%clk
0:01:30.4]} 13. Be3 {[%clk 0:02:10.2]} 13... Nb4 {[%clk 0:01:24.7]} 14. Bc4
{[%clk 0:01:44.9]} 14... Nxe4 {[%clk 0:01:08]} 15. Bxf7+ {[%clk 0:01:15.8]}
15... Kxf7 {[%clk 0:01:08.3]} 16. Nxe4 {[%clk 0:01:16.2]} 16... Qh4 {[%clk
0:00:32.8]} 17. Nxd6+ {[%clk 0:00:59]} 17... Bxd6 {[%clk 0:00:24.7]} 18. Qxd6
{[%clk 0:00:59.2]} 18... Qe7 {[%clk 0:00:02.3]} 19. Qg6+ {[%clk 0:00:59]} 19...
Kg8 {[%clk 0:00:01.6]} 20. f6 {[%clk 0:00:58.9]} 20... Qf7 {[%clk 0:00:02.2]}
21. Qg3 {[%clk 0:00:51.9]} 21... Nxc2 {[%clk 0:00:02.5]} 22. Rad1 {[%clk
0:00:23.1]} 1-0

[Event "Early-Titled-Tuesday-Blitz-February-13-2024"]
[Site "Chess.com"]
[Date "2024.02.13"]
[Round "7"]
[White "barbara25"]
[Black "Kotlyar_K"]
[Result "0-1"]
[WhiteElo "2291"]
[BlackElo "2542"]
[TimeControl "180+1"]
[EndTime "9:20:05 PST"]
[Termination "Kotlyar_K won by resignation"]

1. e4 {[%clk 0:03:00.9]} 1... e5 {[%clk 0:02:58.9]} 2. Nf3 {[%clk 0:03:00.4]}
2... Nc6 {[%clk 0:02:58.6]} 3. d3 {[%clk 0:03:00.5]} 3... Nf6 {[%clk 0:02:57.7]}
4. c3 {[%clk 0:03:00.7]} 4... d5 {[%clk 0:02:57.7]} 5. exd5 {[%clk 0:03:00.1]}
5... Nxd5 {[%clk 0:02:58.5]} 6. d4 {[%clk 0:03:00.1]} 6... exd4 {[%clk 0:02:57]}
7. Nxd4 {[%clk 0:03:00]} 7... Nxd4 {[%clk 0:02:47]} 8. Qxd4 {[%clk 0:03:00]}
8... Be6 {[%clk 0:02:47.3]} 9. Bc4 {[%clk 0:02:59.7]} 9... c6 {[%clk 0:02:25.1]}
10. O-O {[%clk 0:02:57.2]} 10... Nc7 {[%clk 0:02:23.2]} 11. Bxe6 {[%clk
0:02:47.3]} 11... Nxe6 {[%clk 0:02:22.8]} 12. Qe5 {[%clk 0:02:44.6]} 12... Qd6
{[%clk 0:02:18.5]} 13. Qxd6 {[%clk 0:02:39.9]} 13... Bxd6 {[%clk 0:02:19.4]} 14.
Nd2 {[%clk 0:02:40.2]} 14... O-O-O {[%clk 0:02:19.8]} 15. Nc4 {[%clk 0:02:39.5]}
15... Bc7 {[%clk 0:02:19.6]} 16. Be3 {[%clk 0:02:39]} 16... b5 {[%clk
0:02:09.6]} 17. Na3 {[%clk 0:02:37.2]} 17... Kb7 {[%clk 0:02:09.9]} 18. h3
{[%clk 0:02:34.4]} 18... Rhe8 {[%clk 0:02:06]} 19. Rad1 {[%clk 0:02:32.5]} 19...
f5 {[%clk 0:02:02.3]} 20. Nc2 {[%clk 0:02:29.9]} 20... f4 {[%clk 0:02:01.4]} 21.
Bc1 {[%clk 0:02:29.7]} 21... c5 {[%clk 0:01:53.6]} 22. Rfe1 {[%clk 0:02:29.4]}
22... Rxd1 {[%clk 0:01:41.1]} 23. Rxd1 {[%clk 0:02:29]} 23... Kc6 {[%clk
0:01:40.9]} 24. Kf1 {[%clk 0:02:29]} 24... g5 {[%clk 0:01:39.5]} 25. Ne1 {[%clk
0:02:26.6]} 25... Ng7 {[%clk 0:01:30.8]} 26. Nd3 {[%clk 0:02:20.9]} 26... Nf5
{[%clk 0:01:27.7]} 27. b4 {[%clk 0:02:19]} 27... c4 {[%clk 0:01:16.6]} 28. Nc5
{[%clk 0:02:18.9]} 28... Bd6 {[%clk 0:01:16.3]} 29. Na6 {[%clk 0:01:52.4]} 29...
Re7 {[%clk 0:01:01.4]} 30. a4 {[%clk 0:01:20.6]} 30... bxa4 {[%clk 0:00:59.6]}
31. Ba3 {[%clk 0:01:18.1]} 31... Re6 {[%clk 0:00:45]} 32. Nc5 {[%clk 0:01:04.7]}
32... Bxc5 {[%clk 0:00:45]} 33. bxc5 {[%clk 0:01:04.9]} 33... Re7 {[%clk
0:00:35.4]} 34. Bb4 {[%clk 0:01:00.4]} 34... Rd7 {[%clk 0:00:32.5]} 35. Ra1
{[%clk 0:00:59.8]} 35... a5 {[%clk 0:00:29.8]} 36. Bxa5 {[%clk 0:00:56.7]} 36...
Kxc5 {[%clk 0:00:29.4]} 37. Rxa4 {[%clk 0:00:56.8]} 37... Kb5 {[%clk 0:00:29.2]}
38. Ra1 {[%clk 0:00:53.9]} 38... Ra7 {[%clk 0:00:27.1]} 39. Re1 {[%clk
0:00:52.8]} 39... Rxa5 {[%clk 0:00:27.2]} 40. Re5+ {[%clk 0:00:52.9]} 40... Ka4
{[%clk 0:00:27.8]} 41. Re7 {[%clk 0:00:52.7]} 41... Nxe7 {[%clk 0:00:27.2]} 0-1

[Event "Early-Titled-Tuesday-Blitz-February-13-2024"]
[Site "Chess.com"]
[Date "2024.02.13"]
[Round "7"]
[White "Dinosaurio_1975"]
[Black "Kirill_Klukin"]
[Result "0-1"]
[WhiteElo "2591"]
[BlackElo "2813"]
[TimeControl "180+1"]
[EndTime "9:20:06 PST"]
[Termination "Kirill_Klukin won on time"]

1. e4 {[%clk 0:03:00.9]} 1... c5 {[%clk 0:02:59.2]} 2. Nf3 {[%clk 0:03:00.1]}
2... g6 {[%clk 0:02:59.8]} 3. d4 {[%clk 0:02:59.4]} 3... cxd4 {[%clk 0:03:00.7]}
4. Qxd4 {[%clk 0:03:00]} 4... Nf6 {[%clk 0:03:00.9]} 5. Nc3 {[%clk 0:03:00.2]}
5... Nc6 {[%clk 0:03:01.3]} 6. Qa4 {[%clk 0:03:00.4]} 6... d6 {[%clk 0:03:02]}
7. e5 {[%clk 0:02:59.7]} 7... dxe5 {[%clk 0:03:02.9]} 8. Nxe5 {[%clk 0:03:00.4]}
8... Bd7 {[%clk 0:03:03.7]} 9. Nxd7 {[%clk 0:02:59.4]} 9... Nxd7 {[%clk
0:03:04.6]} 10. Be2 {[%clk 0:02:58]} 10... Bg7 {[%clk 0:03:05.1]} 11. O-O {[%clk
0:02:57.8]} 11... O-O {[%clk 0:03:05.8]} 12. Rd1 {[%clk 0:02:57.5]} 12... Qc8
{[%clk 0:03:03.3]} 13. Be3 {[%clk 0:02:55.8]} 13... Nb6 {[%clk 0:03:02.6]} 14.
Qh4 {[%clk 0:02:52.2]} 14... e5 {[%clk 0:03:01.1]} 15. Ne4 {[%clk 0:02:42.9]}
15... Nd4 {[%clk 0:02:56.5]} 16. Bd3 {[%clk 0:02:10.9]} 16... Nf5 {[%clk
0:02:50.9]} 17. Nf6+ {[%clk 0:02:09]} 17... Bxf6 {[%clk 0:02:51]} 18. Qxf6
{[%clk 0:02:09.9]} 18... Nxe3 {[%clk 0:02:51.5]} 19. fxe3 {[%clk 0:02:09.1]}
19... Qc5 {[%clk 0:02:51.5]} 20. Qf3 {[%clk 0:01:58.9]} 20... Rad8 {[%clk
0:02:44.5]} 21. h4 {[%clk 0:01:51.5]} 21... Nd5 {[%clk 0:02:43.9]} 22. Re1
{[%clk 0:01:51.1]} 22... Nf4 {[%clk 0:02:34.3]} 23. Bf1 {[%clk 0:01:35.7]} 23...
Rd2 {[%clk 0:02:28]} 24. Kh2 {[%clk 0:01:26.5]} 24... Ne6 {[%clk 0:02:23.4]} 25.
h5 {[%clk 0:01:06.8]} 25... Rxc2 {[%clk 0:02:18.6]} 26. Re2 {[%clk 0:00:58.7]}
26... b6 {[%clk 0:02:15.2]} 27. Rd1 {[%clk 0:00:52.7]} 27... Rxe2 {[%clk
0:02:12.2]} 28. Bxe2 {[%clk 0:00:53.6]} 28... Qe7 {[%clk 0:02:12.7]} 29. hxg6
{[%clk 0:00:48.4]} 29... hxg6 {[%clk 0:02:13.6]} 30. Kg3 {[%clk 0:00:42.5]}
30... Kg7 {[%clk 0:02:07.6]} 31. Rh1 {[%clk 0:00:37]} 31... Ng5 {[%clk
0:02:04.4]} 32. Qg4 {[%clk 0:00:33.9]} 32... f5 {[%clk 0:01:59.1]} 33. Qh4
{[%clk 0:00:16]} 33... Ne4+ {[%clk 0:01:58.9]} 34. Kf3 {[%clk 0:00:16.4]} 34...
Qxh4 {[%clk 0:01:57.2]} 35. Rxh4 {[%clk 0:00:17.3]} 35... Rd8 {[%clk 0:01:57.4]}
36. g4 {[%clk 0:00:16.9]} 36... Rd2 {[%clk 0:01:54.9]} 37. gxf5 {[%clk 0:00:17]}
37... gxf5 {[%clk 0:01:55.3]} 38. Rh5 {[%clk 0:00:13.8]} 38... Nd6 {[%clk
0:01:52.2]} 39. Rg5+ {[%clk 0:00:13]} 39... Kf6 {[%clk 0:01:52.1]} 40. Rg8
{[%clk 0:00:09.7]} 40... Rxb2 {[%clk 0:01:52]} 41. a4 {[%clk 0:00:09.7]} 41...
Ne4 {[%clk 0:01:33.8]} 42. Ra8 {[%clk 0:00:06.8]} 42... Ng5+ {[%clk 0:01:30.6]}
43. Kf2 {[%clk 0:00:06.6]} 43... Nh3+ {[%clk 0:01:31.1]} 44. Kf1 {[%clk
0:00:04.1]} 44... a5 {[%clk 0:01:22.6]} 45. Bb5 {[%clk 0:00:03.7]} 45... Nf2
{[%clk 0:01:18.3]} 46. Rb8 {[%clk 0:00:03.2]} 46... Ng4 {[%clk 0:01:18.8]} 47.
Rxb6+ {[%clk 0:00:02.5]} 47... Kg5 {[%clk 0:01:19.5]} 48. Re6 {[%clk 0:00:01.2]}
48... Nxe3+ {[%clk 0:01:18.9]} 49. Kg1 {[%clk 0:00:01.9]} 49... Kf4 {[%clk
0:01:19.4]} 50. Ra6 {[%clk 0:00:01.4]} 50... Rg2+ {[%clk 0:01:17.1]} 0-1

[Event "Early-Titled-Tuesday-Blitz-February-13-2024"]
[Site "Chess.com"]
[Date "2024.02.13"]
[Round "7"]
[White "ccccvhhhj"]
[Black "Mikasinski"]
[Result "1-0"]
[WhiteElo "2500"]
[BlackElo "2637"]
[TimeControl "180+1"]
[EndTime "9:20:07 PST"]
[Termination "ccccvhhhj won by checkmate"]

1. d4 {[%clk 0:02:54.1]} 1... Nf6 {[%clk 0:02:59.9]} 2. Bg5 {[%clk 0:02:53.9]}
2... d5 {[%clk 0:03:00]} 3. Bxf6 {[%clk 0:02:50.4]} 3... gxf6 {[%clk 0:03:00.9]}
4. Nc3 {[%clk 0:02:48.5]} 4... c6 {[%clk 0:02:59.8]} 5. e3 {[%clk 0:02:46.7]}
5... e5 {[%clk 0:02:59.6]} 6. Nf3 {[%clk 0:02:42.2]} 6... Bd6 {[%clk 0:02:58.4]}
7. Be2 {[%clk 0:02:36.7]} 7... Qe7 {[%clk 0:02:57.7]} 8. Qd2 {[%clk 0:02:32.6]}
8... Bf5 {[%clk 0:02:55.7]} 9. O-O-O {[%clk 0:02:31.8]} 9... Nd7 {[%clk
0:02:51.2]} 10. h3 {[%clk 0:02:31.1]} 10... O-O-O {[%clk 0:02:49.3]} 11. g4
{[%clk 0:02:28]} 11... Be6 {[%clk 0:02:49.8]} 12. Kb1 {[%clk 0:02:20.2]} 12...
Kb8 {[%clk 0:02:43.3]} 13. e4 {[%clk 0:01:55.7]} 13... exd4 {[%clk 0:02:38.3]}
14. Nxd4 {[%clk 0:01:55.8]} 14... dxe4 {[%clk 0:02:38.7]} 15. Nxe4 {[%clk
0:01:52.6]} 15... Bxa2+ {[%clk 0:02:31.4]} 16. Kxa2 {[%clk 0:01:49.9]} 16...
Qxe4 {[%clk 0:02:31.6]} 17. Bf3 {[%clk 0:01:47.2]} 17... Qf4 {[%clk 0:02:23]}
18. Nxc6+ {[%clk 0:01:43.9]} 18... bxc6 {[%clk 0:02:19.4]} 19. Qxd6+ {[%clk
0:01:43.9]} 19... Qxd6 {[%clk 0:02:18.8]} 20. Rxd6 {[%clk 0:01:44.8]} 20... Ne5
{[%clk 0:02:14.2]} 21. Rxf6 {[%clk 0:01:37]} 21... Kc7 {[%clk 0:02:03.5]} 22.
Re1 {[%clk 0:01:33.7]} 22... Rhe8 {[%clk 0:02:02.6]} 23. Be4 {[%clk 0:01:28.2]}
23... Rd2 {[%clk 0:00:58.2]} 24. Bxh7 {[%clk 0:01:23.9]} 24... Nxg4 {[%clk
0:00:50.4]} 25. Rxf7+ {[%clk 0:01:15.3]} 25... Kd8 {[%clk 0:00:50.7]} 26. Rg1
{[%clk 0:00:33.9]} 26... Rxf2 {[%clk 0:00:30.4]} 27. Rxa7 {[%clk 0:00:30.5]}
27... Nf6 {[%clk 0:00:30.2]} 28. Rgg7 {[%clk 0:00:22.8]} 28... Rh8 {[%clk
0:00:08.9]} 29. Ra8# {[%clk 0:00:21.9]} 1-0

[Event "Early-Titled-Tuesday-Blitz-February-13-2024"]
[Site "Chess.com"]
[Date "2024.02.13"]
[Round "7"]
[White "Leonid_Starozhilov"]
[Black "Nouali_Mohamed"]
[Result "0-1"]
[WhiteElo "2722"]
[BlackElo "2569"]
[TimeControl "180+1"]
[EndTime "9:20:09 PST"]
[Termination "Nouali_Mohamed won on time"]

1. e4 {[%clk 0:03:00.9]} 1... c5 {[%clk 0:02:59.8]} 2. Nf3 {[%clk 0:02:58.5]}
2... Nc6 {[%clk 0:03:00]} 3. Bb5 {[%clk 0:02:58.3]} 3... Qc7 {[%clk 0:02:59.9]}
4. Nc3 {[%clk 0:02:58]} 4... e6 {[%clk 0:03:00.1]} 5. O-O {[%clk 0:02:56.4]}
5... a6 {[%clk 0:02:59.5]} 6. Bxc6 {[%clk 0:02:56.7]} 6... Qxc6 {[%clk
0:03:00.4]} 7. d4 {[%clk 0:02:56.9]} 7... cxd4 {[%clk 0:03:01.1]} 8. Nxd4 {[%clk
0:02:57.8]} 8... Qc7 {[%clk 0:03:01.6]} 9. Re1 {[%clk 0:02:56.5]} 9... h5 {[%clk
0:02:51.1]} 10. Bg5 {[%clk 0:02:30.5]} 10... Nf6 {[%clk 0:02:41.3]} 11. Nd5
{[%clk 0:02:11]} 11... exd5 {[%clk 0:02:30.8]} 12. exd5+ {[%clk 0:02:09.8]}
12... Kd8 {[%clk 0:02:21.7]} 13. Qf3 {[%clk 0:02:09.4]} 13... Qb6 {[%clk
0:01:59.7]} 14. Rad1 {[%clk 0:01:44.4]} 14... Bc5 {[%clk 0:01:09.4]} 15. Nf5
{[%clk 0:00:59.9]} 15... Kc7 {[%clk 0:01:02.3]} 16. b4 {[%clk 0:00:30.7]} 16...
Qxb4 {[%clk 0:00:37.9]} 17. Bf4+ {[%clk 0:00:16.2]} 17... d6 {[%clk 0:00:34.8]}
18. c3 {[%clk 0:00:10.6]} 18... Qb6 {[%clk 0:00:29.7]} 19. Re7+ {[%clk 0:00:10]}
19... Kb8 {[%clk 0:00:28.2]} 20. Nxg7 {[%clk 0:00:03.6]} 20... Bg4 {[%clk
0:00:26.8]} 21. Qd3 {[%clk 0:00:03.9]} 21... Bxf2+ {[%clk 0:00:25.4]} 22. Kh1
{[%clk 0:00:03.6]} 22... Bxd1 {[%clk 0:00:25.4]} 23. Qxd1 {[%clk 0:00:03.8]}
23... Ng4 {[%clk 0:00:24.7]} 24. h3 {[%clk 0:00:03.7]} 24... Bc5 {[%clk
0:00:24.1]} 25. Qf3 {[%clk 0:00:03]} 25... Qb1+ {[%clk 0:00:21.6]} 0-1

[Event "Early-Titled-Tuesday-Blitz-February-13-2024"]
[Site "Chess.com"]
[Date "2024.02.13"]
[Round "7"]
[White "Al_Shima"]
[Black "Chess_Gainz"]
[Result "0-1"]
[WhiteElo "2368"]
[BlackElo "2545"]
[TimeControl "180+1"]
[EndTime "9:20:11 PST"]
[Termination "Chess_Gainz won on time"]

1. e4 {[%clk 0:03:00.9]} 1... d6 {[%clk 0:02:59.6]} 2. Nc3 {[%clk 0:03:00.8]}
2... Nf6 {[%clk 0:03:00]} 3. d4 {[%clk 0:03:01.2]} 3... Nbd7 {[%clk 0:02:59.9]}
4. Nf3 {[%clk 0:02:59.7]} 4... e5 {[%clk 0:03:00]} 5. Bc4 {[%clk 0:02:59.8]}
5... Be7 {[%clk 0:03:00.2]} 6. O-O {[%clk 0:02:51.8]} 6... c6 {[%clk 0:03:00.1]}
7. Re1 {[%clk 0:02:50.2]} 7... b5 {[%clk 0:03:00.1]} 8. Bb3 {[%clk 0:02:50.2]}
8... O-O {[%clk 0:02:57.6]} 9. h3 {[%clk 0:02:47.2]} 9... Bb7 {[%clk 0:02:57.1]}
10. a3 {[%clk 0:02:41.1]} 10... Qc7 {[%clk 0:02:52]} 11. Be3 {[%clk 0:02:25.5]}
11... h6 {[%clk 0:02:48.7]} 12. Nh4 {[%clk 0:02:09.3]} 12... Rfe8 {[%clk
0:02:44]} 13. Nf5 {[%clk 0:02:05.4]} 13... Bf8 {[%clk 0:02:44]} 14. Qf3 {[%clk
0:02:03.7]} 14... exd4 {[%clk 0:02:14.6]} 15. Bxd4 {[%clk 0:02:00.2]} 15... c5
{[%clk 0:02:14.8]} 16. Bxf6 {[%clk 0:01:47.1]} 16... Nxf6 {[%clk 0:02:12.7]} 17.
Nxh6+ {[%clk 0:01:47.4]} 17... gxh6 {[%clk 0:02:13.6]} 18. Qxf6 {[%clk
0:01:47.5]} 18... c4 {[%clk 0:01:55.5]} 19. Nxb5 {[%clk 0:01:19.6]} 19... Qc5
{[%clk 0:01:53.5]} 20. Re3 {[%clk 0:01:08.2]} 20... Re5 {[%clk 0:01:39.9]} 21.
h4 {[%clk 0:00:38.6]} 21... Bg7 {[%clk 0:01:32.7]} 22. Rg3 {[%clk 0:00:21.6]}
22... Rg5 {[%clk 0:01:32.9]} 23. Qf3 {[%clk 0:00:02.8]} 23... Rxg3 {[%clk
0:01:24.6]} 24. Qxg3 {[%clk 0:00:03.7]} 24... Qxb5 {[%clk 0:01:21.2]} 25. Ba2
{[%clk 0:00:03.5]} 25... Qxb2 {[%clk 0:01:17.8]} 26. Rb1 {[%clk 0:00:03.8]}
26... Qxa2 {[%clk 0:01:15.2]} 27. Rxb7 {[%clk 0:00:04.2]} 27... Qa1+ {[%clk
0:00:50.7]} 28. Kh2 {[%clk 0:00:03.7]} 28... Qe5 {[%clk 0:00:50.8]} 29. f4
{[%clk 0:00:04.2]} 29... Qxe4 {[%clk 0:00:50.3]} 30. Rd7 {[%clk 0:00:02.3]}
30... d5 {[%clk 0:00:44.6]} 31. Rd6 {[%clk 0:00:01.5]} 31... Kh7 {[%clk
0:00:43]} 32. Qg4 {[%clk 0:00:01.5]} 32... Rb8 {[%clk 0:00:36.7]} 33. Rd7 {[%clk
0:00:01.5]} 33... Qe6 {[%clk 0:00:31.9]} 0-1

[Event "Early-Titled-Tuesday-Blitz-February-13-2024"]
[Site "Chess.com"]
[Date "2024.02.13"]
[Round "7"]
[White "m_ezat"]
[Black "santosalberto1987"]
[Result "0-1"]
[WhiteElo "2444"]
[BlackElo "2576"]
[TimeControl "180+1"]
[EndTime "9:20:14 PST"]
[Termination "santosalberto1987 won on time"]

1. d4 {[%clk 0:01:37.1]} 1... Nf6 {[%clk 0:02:58.9]} 2. c4 {[%clk 0:01:37.1]}
2... d6 {[%clk 0:02:58.8]} 3. Nc3 {[%clk 0:01:34.2]} 3... e5 {[%clk 0:02:58.7]}
4. Nf3 {[%clk 0:01:34.5]} 4... e4 {[%clk 0:02:58.6]} 5. Ng5 {[%clk 0:01:32.5]}
5... Bf5 {[%clk 0:02:58.4]} 6. g4 {[%clk 0:01:28.8]} 6... Nxg4 {[%clk
0:02:51.4]} 7. Ngxe4 {[%clk 0:01:14.2]} 7... Nc6 {[%clk 0:02:46]} 8. Bg2 {[%clk
0:01:12.5]} 8... Be7 {[%clk 0:02:42.4]} 9. h3 {[%clk 0:01:03.1]} 9... Nf6 {[%clk
0:02:42.3]} 10. Ng3 {[%clk 0:01:02.2]} 10... Bg6 {[%clk 0:02:40.9]} 11. d5
{[%clk 0:00:59.2]} 11... Nb8 {[%clk 0:02:35.8]} 12. Qb3 {[%clk 0:00:56.8]} 12...
b6 {[%clk 0:02:35.4]} 13. Qa4+ {[%clk 0:00:52.7]} 13... Qd7 {[%clk 0:02:34]} 14.
Qxd7+ {[%clk 0:00:50.4]} 14... Nbxd7 {[%clk 0:02:34.9]} 15. Nb5 {[%clk
0:00:49.8]} 15... Kd8 {[%clk 0:02:28.6]} 16. Nd4 {[%clk 0:00:45.1]} 16... Nc5
{[%clk 0:02:22.9]} 17. b4 {[%clk 0:00:37.7]} 17... Nce4 {[%clk 0:02:21.2]} 18.
Nxe4 {[%clk 0:00:31]} 18... Bxe4 {[%clk 0:02:21.2]} 19. f3 {[%clk 0:00:30.5]}
19... Bg6 {[%clk 0:02:20.4]} 20. e4 {[%clk 0:00:28.6]} 20... a5 {[%clk
0:02:13.1]} 21. bxa5 {[%clk 0:00:24.7]} 21... bxa5 {[%clk 0:02:13.1]} 22. c5
{[%clk 0:00:23.8]} 22... dxc5 {[%clk 0:02:12.3]} 23. Nc6+ {[%clk 0:00:23.7]}
23... Kd7 {[%clk 0:02:12]} 24. Ba3 {[%clk 0:00:22.8]} 24... Nh5 {[%clk
0:01:58.3]} 25. Nxe7 {[%clk 0:00:20.3]} 25... Kxe7 {[%clk 0:01:58.6]} 26. Bxc5+
{[%clk 0:00:21]} 26... Kd7 {[%clk 0:01:58.9]} 27. Be3 {[%clk 0:00:21]} 27... f5
{[%clk 0:01:55.8]} 28. O-O {[%clk 0:00:20]} 28... Rhe8 {[%clk 0:01:44.7]} 29. f4
{[%clk 0:00:11.8]} 29... fxe4 {[%clk 0:01:39.9]} 30. f5 {[%clk 0:00:11.9]} 30...
Bf7 {[%clk 0:01:40.5]} 31. Rfc1 {[%clk 0:00:08.1]} 31... Bxd5 {[%clk 0:01:38.1]}
32. Rab1 {[%clk 0:00:08.3]} 32... Nf6 {[%clk 0:01:35.6]} 33. Rb5 {[%clk
0:00:06]} 33... Reb8 {[%clk 0:01:31.9]} 34. Rbc5 {[%clk 0:00:05.8]} 34... c6
{[%clk 0:01:31]} 35. Bg5 {[%clk 0:00:05.8]} 35... Rb2 {[%clk 0:01:28.1]} 36. Rd1
{[%clk 0:00:05.4]} 36... Ke7 {[%clk 0:01:24.1]} 37. Bxe4 {[%clk 0:00:04.1]}
37... Bxe4 {[%clk 0:01:23.1]} 38. Re5+ {[%clk 0:00:03.3]} 38... Kf7 {[%clk
0:01:16.2]} 39. Bxf6 {[%clk 0:00:03.8]} 39... Bf3 {[%clk 0:01:02.8]} 40. Rd7+
{[%clk 0:00:01.5]} 40... Kxf6 {[%clk 0:01:02]} 41. Re6+ {[%clk 0:00:01.9]} 41...
Kxf5 {[%clk 0:01:01.6]} 42. Re3 {[%clk 0:00:02.1]} 42... Bd5 {[%clk 0:00:59.8]}
43. Rd6 {[%clk 0:00:01.1]} 43... Rxa2 {[%clk 0:00:57.6]} 0-1